fUSD/lending_fUSD_20250202
["ID","MTS","AMOUNT","RATE_DAILY","PERIOD"]
[351323811,1738514851717,-229.0,0.00011505,2]
[351323812,1738514851740,-500.0,0.00011505,2]
[351323813,1738514851764,-578.48,0.00011505,2]
[351323814,1738514851786,-529.52,0.00011505,2]
[351323815,1738514851807,-500.0,0.00011505,2]
[351323816,1738514851828,-500.0,0.00011505,2]
[351323817,1738514851851,-500.0,0.00011505,2]
[351323818,1738514851873,-500.0,0.00011505,2]
[351323819,1738514851905,-1078.36,0.00011505,2]
[351323820,1738514851928,-500.0,0.00011505,2]
[351323821,1738514851952,-500.0,0.00011505,2]
[351323822,1738514851976,-7018.59,0.00011505,2]
[351323823,1738514851998,-500.0,0.00011505,2]
[351323824,1738514852019,-500.0,0.00011505,2]
[351323825,1738514852041,-500.0,0.00011505,2]
[351323826,1738514852063,-550.25,0.00011505,2]
[351323827,1738514852084,-500.0,0.00011505,2]
[351323828,1738514852106,-500.0,0.00011505,2]
[351323829,1738514852130,-500.0,0.00011505,2]
[351323830,1738514852162,-266.96,0.00011505,2]
[351323831,1738514852186,-500.0,0.00011505,2]
[351323832,1738514852210,-1007.18,0.00011505,2]
[351323833,1738514852233,-1588.93,0.00011505,2]
[351323834,1738514852257,-589.27,0.00011505,2]
[351323835,1738514852281,-626.12,0.00011505,2]
[351323836,1738514852305,-500.0,0.00011505,2]
[351323837,1738514852330,-500.0,0.00011505,2]
[351323838,1738514852355,-500.0,0.00011505,2]
[351323839,1738514852381,-500.0,0.00011505,2]
[351323840,1738514852413,-1081.13,0.00011505,2]
[351323841,1738514852439,-500.0,0.00011505,2]
[351323842,1738514852464,-500.0,0.00011505,2]
[351323843,1738514852492,-500.0,0.00011505,2]
[351323844,1738514852518,-156.878285,0.00011505,2]
[351323845,1738514852542,-500.0,0.00011505,2]
[351323846,1738514852566,-500.0,0.00011505,2]
[351323847,1738514852594,-535.67,0.00011505,2]
[351323848,1738514852619,-694.62,0.00011505,2]
[351323849,1738514852648,-154.17,0.00011505,2]
[351323850,1738514852672,-500.0,0.00011505,2]
[351323851,1738514852696,-156.135877,0.00011505,2]
[351323852,1738514852721,-500.0,0.00011505,2]
[351323853,1738514852743,-938.8,0.00011505,2]
[351323854,1738514852766,-628.13,0.00011505,2]
[351323855,1738514852791,-500.0,0.00011505,2]
[351323856,1738514852814,-536.82,0.00011505,2]
[351323857,1738514852838,-500.0,0.00011505,2]
[351323858,1738514852861,-500.0,0.00011505,2]
[351323859,1738514852883,-500.0,0.00011506,2]
[351323860,1738514852907,-500.0,0.00011506,2]
[351323861,1738514852930,-500.0,0.00011506,2]
[351323862,1738514852953,-500.0,0.00011506,2]
[351323863,1738514852980,-500.0,0.00011506,2]
[351323864,1738514853003,-604.3,0.00011506,2]
[351323865,1738514853032,-500.0,0.00011506,2]
[351323866,1738514853057,-235.08539019,0.00011506,2]
[351323867,1738514853085,-500.0,0.00011506,2]
[351323868,1738514853111,-500.0,0.00011506,2]
[351323869,1738514853135,-500.0,0.00011506,2]
[351323870,1738514853163,-500.0,0.00011506,2]
[351323871,1738514853188,-500.0,0.00011506,2]
[351323872,1738514853213,-397.24661321,0.00011506,2]
[351323873,1738514854022,-500.0,0.00010958,2]
[351323874,1738514854046,-500.0,0.00011094,2]
[351323875,1738514854069,-500.0,0.00011094,2]
[351323876,1738514854091,-500.0,0.00011094,2]
[351323877,1738514854114,-500.0,0.00011094,2]
[351323878,1738514854143,-500.0,0.00011094,2]
[351323879,1738514854427,-500.0,0.00011094,2]
[351323880,1738514854453,-609.86,0.00011095,2]
[351323881,1738514854478,-500.0,0.00011231,2]
[351323882,1738514854501,-500.0,0.00011368,2]
[351323883,1738514854526,-500.0,0.00011505,2]
[351323884,1738514854551,-102.75338679,0.00011506,2]
[351323885,1738514854575,-500.0,0.00011506,2]
[351323886,1738514854599,-500.0,0.00011506,2]
[351323887,1738514854624,-771.67,0.00011506,2]
[351323888,1738514854651,-500.0,0.00011506,2]
[351323889,1738514854673,-500.0,0.00011506,2]
[351323890,1738514854694,-500.0,0.00011506,2]
[351323891,1738514854716,-500.0,0.00011506,2]
[351323892,1738514854736,-500.0,0.00011506,2]
[351323893,1738514854758,-630.7959467,0.00011506,2]
[351323894,1738514854778,-500.0,0.00011506,2]
[351323895,1738514854798,-500.0,0.00011506,2]
[351323896,1738514854819,-500.0,0.00011506,2]
[351323897,1738514854839,-500.0,0.00011506,2]
[351323898,1738514854861,-500.0,0.00011506,2]
[351323899,1738514854882,-231.40473302,0.00011506,2]
[351323900,1738514854907,-564.04,0.00011506,2]
[351323901,1738514854930,-184.38185913,0.00011506,2]
[351323902,1738514854951,-500.0,0.00011506,2]
[351323903,1738514854972,-500.0,0.00011506,2]
[351323904,1738514854993,-500.0,0.00011506,2]
[351323905,1738514855015,-500.0,0.00011506,2]
[351323906,1738514855036,-500.0,0.00011506,2]
[351323907,1738514855057,-500.0,0.00011506,2]
[351323908,1738514855078,-500.0,0.00011506,2]
[351323909,1738514855098,-349.06135499,0.00011506,2]
[351323910,1738514855120,-633.37024379,0.00011506,2]
[351323911,1738514855144,-500.0,0.00011506,2]
[351323912,1738514855165,-500.0,0.00011506,2]
[351323913,1738514855187,-500.0,0.00011506,2]
[351323914,1738514855208,-335.2277137,0.00011506,2]
[351323915,1738514855229,-500.0,0.00011506,2]
[351323916,1738514855250,-500.0,0.00011506,2]
[351323917,1738514855272,-201.36213897,0.00011506,2]
[351323918,1738514855293,-500.0,0.00011506,2]
[351323919,1738514855315,-665.72,0.00011506,2]
[351323920,1738514855336,-428.14,0.00011506,2]
[351323921,1738514855356,-500.0,0.00011506,2]
[351323922,1738514855377,-500.0,0.00011506,2]
[351323923,1738514855402,-500.0,0.00011506,2]
[351323924,1738514855423,-500.0,0.00011506,2]
[351323925,1738514855444,-500.0,0.00011506,2]
[351323926,1738514855466,-450.90188877,0.00011506,2]
[351323927,1738514855487,-591.01,0.00011506,2]
[351323928,1738514855509,-500.0,0.00011506,2]
[351323929,1738514855531,-536.3,0.00011506,2]
[351323930,1738514855552,-510.71,0.00011506,2]
[351323931,1738514855574,-500.0,0.00011506,2]
[351323932,1738514855597,-500.0,0.00011506,2]
[351323933,1738514855620,-500.0,0.00011506,2]
[351323934,1738514855645,-431.18147599,0.00011558,2]
[351323935,1738514855670,-500.0,0.00011642,2]
[351323936,1738514855691,-500.0,0.00011642,2]
[351323937,1738514855713,-792.32,0.00011642,2]
[351323938,1738514855735,-500.0,0.00011642,2]
[351323939,1738514855758,-500.0,0.00011642,2]
[351323940,1738514855782,-500.0,0.00011642,2]
[351323941,1738514855802,-500.0,0.00011642,2]
[351323942,1738514855824,-500.0,0.00011642,2]
[351323943,1738514855845,-527.83,0.00011642,2]
[351323944,1738514855866,-500.0,0.00011642,2]
[351323945,1738514855887,-500.0,0.00011642,2]
[351323946,1738514855916,-500.0,0.00011642,2]
[351323947,1738514855938,-500.0,0.00011642,2]
[351323948,1738514855962,-500.0,0.00011642,2]
[351323949,1738514855983,-500.0,0.00011642,2]
[351323950,1738514856006,-891.06,0.00011642,2]
[351323951,1738514856027,-199.94,0.00011642,2]
[351323952,1738514856049,-500.0,0.00011642,2]
[351323953,1738514856069,-500.0,0.00011642,2]
[351323954,1738514856092,-814.53,0.00011642,2]
[351323955,1738514856113,-1128.63,0.00011642,2]
[351323956,1738514856133,-298.78,0.00011642,2]
[351323957,1738514856158,-1959.3,0.00011642,2]
[351323958,1738514856179,-1101.14,0.00011642,2]
[351323959,1738514856200,-500.0,0.00011642,2]
[351323960,1738514856220,-500.0,0.00011642,2]
[351323961,1738514856241,-500.0,0.00011642,2]
[351323962,1738514856261,-500.0,0.00011642,2]
[351323963,1738514856282,-500.0,0.00011642,2]
[351323964,1738514856303,-500.0,0.00011642,2]
[351323965,1738514856325,-1448.21,0.00011642,2]
[351323966,1738514856347,-500.0,0.00011642,2]
[351323967,1738514856371,-1362.83,0.00011642,2]
[351323968,1738514856396,-266.367429,0.00011642,2]
[351323969,1738514856418,-536.25,0.00011642,2]
[351323970,1738514856441,-500.0,0.00011642,2]
[351323971,1738514856463,-1091.9,0.00011642,2]
[351323972,1738514856484,-500.0,0.00011642,2]
[351323973,1738514856506,-500.0,0.00011642,2]
[351323974,1738514856528,-716.55,0.00011642,2]
[351323975,1738514856554,-500.0,0.00011642,2]
[351323976,1738514856580,-504.24,0.00011642,2]
[351323977,1738514856601,-726.28,0.00011642,2]
[351323978,1738514856624,-500.0,0.00011642,2]
[351323979,1738514856647,-799.94,0.00011642,2]
[351323980,1738514856669,-500.0,0.00011642,2]
[351323981,1738514856692,-492.68,0.00011642,2]
[351323982,1738514856713,-500.0,0.00011642,2]
[351323983,1738514856734,-996.21,0.00011642,2]
[351323984,1738514856756,-500.0,0.00011642,2]
[351323985,1738514856814,-700.15,0.00011642,2]
[351323986,1738514856834,-500.0,0.00011642,2]
[351323987,1738514856857,-500.0,0.00011642,2]
[351323988,1738514856879,-500.0,0.00011642,2]
[351323989,1738514856904,-500.0,0.00011642,2]
[351323990,1738514856925,-500.0,0.00011642,2]
[351323991,1738514856947,-525.87,0.00011642,2]
[351323992,1738514856969,-647.43,0.00011642,2]
[351323993,1738514856991,-973.41,0.00011642,2]
[351323994,1738514857014,-500.0,0.00011642,2]
[351323995,1738514857034,-971.54,0.00011642,2]
[351323996,1738514857056,-532.71,0.00011642,2]
[351323997,1738514857077,-1238.41,0.00011642,2]
[351323998,1738514857100,-500.0,0.00011642,2]
[351323999,1738514857124,-500.0,0.00011642,2]
[351324000,1738514857152,-500.0,0.00011642,2]
[351324001,1738514857176,-1558.22,0.00011642,2]
[351324002,1738514857197,-617.8,0.00011642,2]
[351324003,1738514857217,-500.0,0.00011642,2]
[351324004,1738514857237,-500.0,0.00011642,2]
[351324005,1738514857258,-500.0,0.00011642,2]
[351324006,1738514857278,-500.0,0.00011642,2]
[351324007,1738514857299,-578.48,0.00011642,2]
[351324008,1738514857320,-529.52,0.00011642,2]
[351324009,1738514857341,-500.0,0.00011642,2]
[351324010,1738514857364,-235.45,0.00011642,2]
[351324011,1738514857387,-500.0,0.00011642,2]
[351324012,1738514857411,-500.0,0.00011642,2]
[351324013,1738514857434,-1078.36,0.00011642,2]
[351324014,1738514857455,-500.0,0.00011642,2]
[351324015,1738514857479,-500.0,0.00011642,2]
[351324016,1738514857503,-7018.59,0.00011642,2]
[351324017,1738514857524,-500.0,0.00011642,2]
[351324018,1738514857545,-500.0,0.00011642,2]
[351324019,1738514857566,-500.0,0.00011642,2]
[351324020,1738514857592,-550.25,0.00011642,2]
[351324021,1738514857613,-500.0,0.00011642,2]
[351324022,1738514857636,-500.0,0.00011642,2]
[351324023,1738514857660,-500.0,0.00011642,2]
[351324024,1738514857682,-500.0,0.00011642,2]
[351324025,1738514857703,-1007.18,0.00011642,2]
[351324026,1738514857724,-1588.93,0.00011642,2]
[351324027,1738514857746,-626.12,0.00011642,2]
[351324028,1738514857768,-500.0,0.00011642,2]
[351324029,1738514857790,-500.0,0.00011642,2]
[351324030,1738514857811,-500.0,0.00011642,2]
[351324031,1738514857834,-500.0,0.00011642,2]
[351324032,1738514857854,-1081.13,0.00011642,2]
[351324033,1738514857876,-500.0,0.00011642,2]
[351324034,1738514857900,-500.0,0.00011642,2]
[351324035,1738514857923,-500.0,0.00011642,2]
[351324036,1738514857946,-156.878285,0.00011642,2]
[351324037,1738514857968,-500.0,0.00011642,2]
[351324038,1738514857991,-500.0,0.00011642,2]
[351324039,1738514858013,-535.67,0.00011642,2]
[351324040,1738514858037,-694.62,0.00011642,2]
[351324041,1738514858058,-500.0,0.00011642,2]
[351324042,1738514858080,-156.135877,0.00011642,2]
[351324043,1738514858101,-500.0,0.00011642,2]
[351324044,1738514858123,-938.8,0.00011642,2]
[351324045,1738514858145,-628.13,0.00011642,2]
[351324046,1738514858165,-500.0,0.00011642,2]
[351324047,1738514858185,-536.82,0.00011642,2]
[351324048,1738514858207,-500.0,0.00011642,2]
[351324049,1738514858226,-500.0,0.00011642,2]
[351324050,1738514858246,-500.0,0.00011642,2]
[351324051,1738514858267,-307.37231842,0.00011643,2]
[351324052,1738514858287,-421.16007273,0.00011643,2]
[351324053,1738514858308,-500.0,0.00011643,2]
[351324054,1738514858327,-500.0,0.00011643,2]
[351324055,1738514858348,-604.3,0.00011643,2]
[351324056,1738514858369,-500.0,0.00011643,2]
[351324057,1738514858390,-500.0,0.00011643,2]
[351324058,1738514858414,-500.0,0.00011643,2]
[351324059,1738514858434,-500.0,0.00011643,2]
[351324060,1738514858454,-395.35898979,0.00011643,2]
[351324061,1738514858476,-500.0,0.00011643,2]
[351324062,1738514858495,-500.0,0.00011643,2]
[351324063,1738514858516,-354.08122601,0.00011643,2]
[351324064,1738514858538,-500.0,0.00011643,2]
[351324065,1738514858560,-771.67,0.00011643,2]
[351324066,1738514858583,-500.0,0.00011643,2]
[351324067,1738514858608,-500.0,0.00011643,2]
[351324068,1738514858628,-500.0,0.00011643,2]
[351324069,1738514858651,-200.9589359,0.00011643,2]
[351324070,1738514858673,-218.84096695,0.00011643,2]
[351324071,1738514858694,-500.0,0.00011643,2]
[351324072,1738514858714,-500.0,0.00011643,2]
[351324073,1738514858734,-500.0,0.00011643,2]
[351324074,1738514858756,-500.0,0.00011643,2]
[351324075,1738514858777,-500.0,0.00011643,2]
[351324076,1738514858798,-500.0,0.00011643,2]
[351324077,1738514858820,-500.0,0.00011643,2]
[351324078,1738514858841,-500.0,0.00011643,2]
[351324079,1738514858867,-180.66032888,0.00011643,2]
[351324080,1738514858887,-500.0,0.00011643,2]
[351324081,1738514858913,-500.0,0.00011643,2]
[351324082,1738514858933,-306.36412561,0.00011643,2]
[351324083,1738514858954,-500.0,0.00011643,2]
[351324084,1738514858976,-500.0,0.00011643,2]
[351324085,1738514858998,-500.0,0.00011643,2]
[351324086,1738514859019,-500.0,0.00011643,2]
[351324087,1738514859040,-500.0,0.00011643,2]
[351324088,1738514859061,-500.0,0.00011643,2]
[351324089,1738514859083,-665.72,0.00011643,2]
[351324090,1738514859104,-500.0,0.00011643,2]
[351324091,1738514859125,-500.0,0.00011643,2]
[351324092,1738514859146,-500.0,0.00011643,2]
[351324093,1738514859166,-500.0,0.00011643,2]
[351324094,1738514859186,-500.0,0.00011643,2]
[351324095,1738514859206,-591.01,0.00011643,2]
[351324096,1738514859227,-500.0,0.00011643,2]
[351324097,1738514859249,-536.3,0.00011643,2]
[351324098,1738514859270,-510.71,0.00011643,2]
[351324099,1738514859293,-500.0,0.00011643,2]
[351324100,1738514859313,-500.0,0.00011643,2]
[351324101,1738514859334,-500.0,0.00011643,2]
[351324102,1738514859354,-500.0,0.00011778,2]
[351324103,1738514859376,-500.0,0.00011778,2]
[351324104,1738514859399,-416.35403082,0.00011778,2]
[351324105,1738514859421,-500.0,0.00011778,2]
[351324106,1738514859443,-363.59566614,0.00011778,2]
[351324107,1738514859464,-422.39029403,0.00011778,2]
[351324108,1738514859486,-543.17427219,0.00011778,2]
[351324109,1738514859506,-500.0,0.00011778,2]
[351324110,1738514859527,-500.0,0.00011778,2]
[351324111,1738514859548,-500.0,0.00011778,2]
[351324112,1738514859569,-320.06446673,0.00011778,2]
[351324113,1738514859594,-500.0,0.00011779,2]
[351324114,1738514859620,-500.0,0.00011779,2]
[351324115,1738514859643,-792.32,0.00011779,2]
[351324116,1738514859669,-500.0,0.00011779,2]
[351324117,1738514859692,-500.0,0.00011779,2]
[351324118,1738514859714,-500.0,0.00011779,2]
[351324119,1738514859735,-500.0,0.00011779,2]
[351324120,1738514859759,-500.0,0.00011779,2]
[351324121,1738514859783,-527.83,0.00011779,2]
[351324122,1738514859806,-500.0,0.00011779,2]
[351324123,1738514859828,-500.0,0.00011779,2]
[351324124,1738514859851,-500.0,0.00011779,2]
[351324125,1738514859875,-500.0,0.00011779,2]
[351324126,1738514859909,-500.0,0.00011779,2]
[351324127,1738514859936,-500.0,0.00011779,2]
[351324128,1738514859962,-891.06,0.00011779,2]
[351324129,1738514859990,-500.0,0.00011779,2]
[351324130,1738514860014,-500.0,0.00011779,2]
[351324131,1738514860041,-814.53,0.00011779,2]
[351324132,1738514860068,-1128.63,0.00011779,2]
[351324133,1738514860093,-1959.3,0.00011779,2]
[351324134,1738514860117,-1101.14,0.00011779,2]
[351324135,1738514860141,-500.0,0.00011779,2]
[351324136,1738514860169,-500.0,0.00011779,2]
[351324137,1738514860192,-500.0,0.00011779,2]
[351324138,1738514860213,-500.0,0.00011779,2]
[351324139,1738514860234,-500.0,0.00011779,2]
[351324140,1738514860257,-500.0,0.00011779,2]
[351324141,1738514860279,-1448.21,0.00011779,2]
[351324142,1738514860302,-500.0,0.00011779,2]
[351324143,1738514860326,-1362.83,0.00011779,2]
[351324144,1738514860349,-536.25,0.00011779,2]
[351324145,1738514860372,-500.0,0.00011779,2]
[351324146,1738514860395,-1091.9,0.00011779,2]
[351324147,1738514860423,-500.0,0.00011779,2]
[351324148,1738514860447,-265.37918181,0.00011779,2]
[351324149,1738514860470,-716.55,0.00011779,2]
[351324150,1738514860492,-500.0,0.00011779,2]
[351324151,1738514860516,-504.24,0.00011779,2]
[351324152,1738514860543,-726.28,0.00011779,2]
[351324153,1738514860569,-500.0,0.00011779,2]
[351324154,1738514860599,-799.94,0.00011779,2]
[351324155,1738514860625,-500.0,0.00011779,2]
[351324156,1738514860656,-500.0,0.00011779,2]
[351324157,1738514860684,-996.21,0.00011779,2]
[351324158,1738514860709,-500.0,0.00011779,2]
[351324159,1738514860733,-700.15,0.00011779,2]
[351324160,1738514860756,-500.0,0.00011779,2]
[351324161,1738514860777,-500.0,0.00011779,2]
[351324162,1738514860800,-500.0,0.00011779,2]
[351324163,1738514860821,-500.0,0.00011779,2]
[351324164,1738514860843,-500.0,0.00011779,2]
[351324165,1738514860865,-525.87,0.00011779,2]
[351324166,1738514860887,-647.43,0.00011779,2]
[351324167,1738514860914,-973.41,0.00011779,2]
[351324168,1738514860936,-500.0,0.00011779,2]
[351324169,1738514860957,-971.54,0.00011779,2]
[351324170,1738514860979,-532.71,0.00011779,2]
[351324171,1738514861002,-1238.41,0.00011779,2]
[351324172,1738514861023,-500.0,0.00011779,2]
[351324173,1738514861045,-500.0,0.00011779,2]
[351324174,1738514861067,-500.0,0.00011779,2]
[351324175,1738514861091,-1558.22,0.00011779,2]
[351324176,1738514861114,-617.8,0.00011779,2]
[351324177,1738514861137,-500.0,0.00011779,2]
[351324178,1738514861163,-500.0,0.00011779,2]
[351324179,1738514861187,-500.0,0.00011779,2]
[351324180,1738514861213,-500.0,0.00011779,2]
[351324181,1738514861237,-529.52,0.00011779,2]
[351324182,1738514861261,-578.48,0.00011779,2]
[351324183,1738514861284,-500.0,0.00011779,2]
[351324184,1738514861307,-500.0,0.00011779,2]
[351324185,1738514861329,-500.0,0.00011779,2]
[351324186,1738514861352,-1078.36,0.00011779,2]
[351324187,1738514861374,-500.0,0.00011779,2]
[351324188,1738514861396,-500.0,0.00011779,2]
[351324189,1738514861423,-7018.59,0.00011779,2]
[351324190,1738514861445,-500.0,0.00011779,2]
[351324191,1738514861467,-500.0,0.00011779,2]
[351324192,1738514861491,-500.0,0.00011779,2]
[351324193,1738514861516,-550.25,0.00011779,2]
[351324194,1738514861541,-500.0,0.00011779,2]
[351324195,1738514861567,-500.0,0.00011779,2]
[351324196,1738514861595,-500.0,0.00011779,2]
[351324197,1738514861621,-500.0,0.00011779,2]
[351324198,1738514861649,-1007.18,0.00011779,2]
[351324199,1738514861676,-1588.93,0.00011779,2]
[351324200,1738514861701,-626.12,0.00011779,2]
[351324201,1738514861726,-500.0,0.00011779,2]
[351324202,1738514861750,-500.0,0.00011779,2]
[351324203,1738514861773,-500.0,0.00011779,2]
[351324204,1738514861797,-500.0,0.00011779,2]
[351324205,1738514861821,-1081.13,0.00011779,2]
[351324206,1738514861843,-500.0,0.00011779,2]
[351324207,1738514861867,-500.0,0.00011779,2]
[351324208,1738514861891,-500.0,0.00011779,2]
[351324209,1738514861919,-500.0,0.00011779,2]
[351324210,1738514861942,-500.0,0.00011779,2]
[351324211,1738514861967,-535.67,0.00011779,2]
[351324212,1738514861991,-694.62,0.00011779,2]
[351324213,1738514862015,-200.05,0.00011779,2]
[351324214,1738514862040,-500.0,0.00011779,2]
[351324215,1738514862064,-938.8,0.00011779,2]
[351324216,1738514862088,-628.13,0.00011779,2]
[351324217,1738514862112,-500.0,0.00011779,2]
[351324218,1738514862137,-536.82,0.00011779,2]
[351324219,1738514862162,-500.0,0.00011779,2]
[351324220,1738514862191,-500.0,0.00011779,2]
[351324221,1738514862217,-500.0,0.00011779,2]
[351324222,1738514862243,-251.76,0.0001178,2]
[351324223,1738514862267,-256.38025903,0.0001178,2]
[351324224,1738514862292,-604.3,0.0001178,2]
[351324225,1738514862318,-500.0,0.0001178,2]
[351324226,1738514862342,-500.0,0.0001178,2]
[351324227,1738514862365,-500.0,0.0001178,2]
[351324228,1738514862390,-500.0,0.0001178,2]
[351324229,1738514862415,-338.43,0.0001178,2]
[351324230,1738514862441,-500.0,0.0001178,2]
[351324231,1738514862464,-461.48572647,0.0001178,2]
[351324232,1738514862488,-771.67,0.0001178,2]
[351324233,1738514862514,-500.0,0.0001178,2]
[351324234,1738514862539,-500.0,0.0001178,2]
[351324235,1738514862565,-500.0,0.0001178,2]
[351324236,1738514862604,-187.55631768,0.0001178,2]
[351324237,1738514862635,-311.59721727,0.0001178,2]
[351324238,1738514862667,-500.0,0.0001178,2]
[351324239,1738514862698,-500.0,0.0001178,2]
[351324240,1738514862729,-630.8057987,0.0001178,2]
[351324241,1738514863028,-500.0,0.0001178,2]
[351324242,1738514863053,-199.10862832,0.0001178,2]
[351324243,1738514863079,-303.56510499,0.0001178,2]
[351324244,1738514863104,-500.0,0.0001178,2]
[351324245,1738514863128,-500.0,0.0001178,2]
[351324246,1738514863156,-500.0,0.0001178,2]
[351324247,1738514863182,-500.0,0.0001178,2]
[351324248,1738514863207,-500.0,0.0001178,2]
[351324249,1738514863232,-500.0,0.0001178,2]
[351324250,1738514863256,-500.0,0.0001178,2]
[351324251,1738514863281,-500.0,0.0001178,2]
[351324252,1738514863306,-665.72,0.0001178,2]
[351324253,1738514863331,-500.0,0.0001178,2]
[351324254,1738514863356,-500.0,0.0001178,2]
[351324255,1738514863380,-500.0,0.0001178,2]
[351324256,1738514863408,-500.0,0.0001178,2]
[351324257,1738514863432,-500.0,0.0001178,2]
[351324258,1738514863456,-591.01,0.0001178,2]
[351324259,1738514863480,-500.0,0.0001178,2]
[351324260,1738514863506,-536.3,0.0001178,2]
[351324261,1738514863530,-510.71,0.0001178,2]
[351324262,1738514863554,-500.0,0.0001178,2]
[351324263,1738514863578,-500.0,0.0001178,2]
[351324264,1738514863603,-500.0,0.0001178,2]
[351324265,1738514863633,-549.4,0.000118,2]
[351324266,1738514863663,-634.50687,0.0001188,2]
[351324267,1738514863691,-160.04132346,0.000119,2]
[351324268,1738514863715,-154.3603991,0.000119,2]
[351324269,1738514863740,-289.75043121,0.00011916,2]
[351324270,1738514863764,-433.64596992,0.00011916,2]
[351324271,1738514863790,-792.32,0.00011916,2]
[351324272,1738514863813,-500.0,0.00011916,2]
[351324273,1738514863836,-500.0,0.00011916,2]
[351324274,1738514863859,-500.0,0.00011916,2]
[351324275,1738514863883,-500.0,0.00011916,2]
[351324276,1738514863908,-500.0,0.00011916,2]
[351324277,1738514863931,-527.83,0.00011916,2]
[351324278,1738514863953,-500.0,0.00011916,2]
[351324279,1738514863976,-500.0,0.00011916,2]
[351324280,1738514863999,-500.0,0.00011916,2]
[351324281,1738514864026,-500.0,0.00011916,2]
[351324282,1738514864048,-500.0,0.00011916,2]
[351324283,1738514864070,-500.0,0.00011916,2]
[351324284,1738514864093,-891.06,0.00011916,2]
[351324285,1738514864116,-500.0,0.00011916,2]
[351324286,1738514864138,-353.96,0.00011916,2]
[351324287,1738514864166,-814.53,0.00011916,2]
[351324288,1738514864190,-1128.63,0.00011916,2]
[351324289,1738514864214,-1959.3,0.00011916,2]
[351324290,1738514864237,-1101.14,0.00011916,2]
[351324291,1738514864259,-500.0,0.00011916,2]
[351324292,1738514864280,-500.0,0.00011916,2]
[351324293,1738514864302,-177.5,0.00011916,2]
[351324294,1738514864323,-500.0,0.00011916,2]
[351324295,1738514864346,-500.0,0.00011916,2]
[351324296,1738514864368,-500.0,0.00011916,2]
[351324297,1738514864391,-1448.21,0.00011916,2]
[351324298,1738514864415,-500.0,0.00011916,2]
[351324299,1738514864438,-1362.83,0.00011916,2]
[351324300,1738514864460,-536.25,0.00011916,2]
[351324301,1738514864483,-500.0,0.00011916,2]
[351324302,1738514864505,-1091.9,0.00011916,2]
[351324303,1738514864528,-500.0,0.00011916,2]
[351324304,1738514864550,-716.55,0.00011916,2]
[351324305,1738514864572,-500.0,0.00011916,2]
[351324306,1738514864599,-504.24,0.00011916,2]
[351324307,1738514864622,-726.28,0.00011916,2]
[351324308,1738514864644,-391.43183276,0.00011916,2]
[351324309,1738514864674,-799.94,0.00011916,2]
[351324310,1738514864697,-500.0,0.00011916,2]